[Event "RUS-ch Men Blitz 2019"]
[Site "Sochi"]
[Date "2019.10.17"]
[Round "12.2"]
[White "Savchenko, Boris"]
[Black "Drygalov, Andrey"]
[Result "1/2-1/2"]
[ECO "B50"]
[WhiteElo "2581"]
[BlackElo "2484"]
[Annotator "ChessBase"]
[PlyCount "92"]
[EventDate "2019.10.17"]
[EventType "swiss"]
[EventCountry "RUS"]
[SourceTitle "playchess.com"]
[Source "ChessBase"]
[SourceQuality "1"]
[TimeControl "180+2"]

1. e4 {[%emt 0:00:00]} c5 {[%emt 0:00:00]} 2. Nf3 d6 3. c3 {[%emt 0:00:02]} Nf6 {[%emt 0:00:00]} 4. g3 {[%emt 0:00:02]} g6 {[%emt 0:00:02]} 5. Bg2 {[%emt 0:00:01]} Bg7 {[%emt 0:00:01]} 6. O-O {[%emt 0:00:01]} O-O {[%emt 0:00:01]} 7. Re1 {[%emt 0:00:02]} Nc6 {[%emt 0:00:04]} 8. d3 {[%emt 0:00:01]} Rb8 {[%emt 0:00:12]} 9. a4 {[%emt 0:00:04]} a6 {[%emt 0:00:02]} 10. d4 {[%emt 0:00:24]} cxd4 {[%emt 0:00:09]} 11. cxd4 {[%emt 0:00:01]} Bg4 {[%emt 0:00:02]} 12. Na3 {[%emt 0:00:10]} Nd7 {[%emt 0:00:10]} 13. Nc2 {[%emt 0:00:04]} e5 {[%emt 0:00:53]} 14. dxe5 {[%emt 0:00:11]} Ndxe5 {[%emt 0:00:08]} 15. h3 {[%emt 0:00:10]} Nxf3+ {[%emt 0:00:02]} 16. Bxf3 {[%emt 0:00:02]} Bxh3 {[%emt 0:00:38]} 17. Ra3 {[%emt 0:00:11]} Be6 {[%emt 0:00:05]} 18. Bg2 {[%emt 0:00:06]} Rc8 {[%emt 0:00:02]} 19. Rd3 {[%emt 0:00:07]} Qc7 {[%emt 0:00:23]} 20. Ne3 {[%emt 0:00:34]} Rfd8 {[%emt 0:00:04]} 21. f4 {[%emt 0:00:30]} Nb4 {[%emt 0:00:02]} 22. Ra3 {[%emt 0:00:06]} Nc2 {[%emt 0:00:15]} 23. Nxc2 {[%emt 0:00:08]} Qxc2 {[%emt 0:00:01]} 24. Rd3 {[%emt 0:00:20]} Qxd1 {[%emt 0:00:10]} 25. Rexd1 {[%emt 0:00:01]} Bg4 {[%emt 0:00:01]} 26. Bf3 {[%emt 0:00:07]} Bxf3 {[%emt 0:00:00]} 27. Rxf3 {[%emt 0:00:01]} Rc4 {[%emt 0:00:12]} 28. Rb3 {[%emt 0:00:03]} Rdc8 {[%emt 0:00:05]} 29. Be3 {[%emt 0:00:02]} Rxa4 {[%emt 0:00:03]} 30. Rxb7 {[%emt 0:00:04]} Rxe4 {[%emt 0:00:01]} 31. Kf2 {[%emt 0:00:02]} Rce8 {[%emt 0:00:02]} 32. Ba7 {[%emt 0:00:04]} Re2+ {[%emt 0:00:01]} 33. Kf3 {[%emt 0:00:00]} Rxb2 {[%emt 0:00:01]} 34. Rxb2 {[%emt 0:00:02]} Bxb2 {[%emt 0:00:01]} 35. Rxd6 {[%emt 0:00:01]} a5 {[%emt 0:00:00]} 36. Ra6 {[%emt 0:00:02]} Ra8 {[%emt 0:00:11]} 37. Rxa5 {[%emt 0:00:01]} Bd4 {[%emt 0:00:03]} 38. Bb6 Rxa5 39. Bxa5 {[%emt 0:00:02]} Kg7 {[%emt 0:00:02]} 40. g4 f6 41. Be1 {[%emt 0:00:10]} Kf7 {[%emt 0:00:01]} 42. Ke4 {[%emt 0:00:01]} Ba1 {[%emt 0:00:01]} 43. f5 {[%emt 0:00:01]} Be5 {[%emt 0:00:04]} 44. Bf2 {[%emt 0:00:01]} Bb2 {[%emt 0:00:03]} 45. Bg3 {[%emt 0:00:01]} h5 {[%emt 0:00:03]} 46. fxg6+ {[%emt 0:00:01]} Kxg6 1/2-1/2

[Event "RUS-ch Men Blitz 2019"]
[Site "Sochi"]
[Date "2019.10.17"]
[Round "12.3"]
[White "Yudin, Sergei"]
[Black "Yuffa, Daniil"]
[Result "1/2-1/2"]
[ECO "B13"]
[WhiteElo "2497"]
[BlackElo "2577"]
[Annotator "ChessBase"]
[PlyCount "121"]
[EventDate "2019.10.17"]
[EventType "swiss"]
[EventCountry "RUS"]
[SourceTitle "playchess.com"]
[Source "ChessBase"]
[SourceQuality "1"]
[TimeControl "180+2"]

1. e4 {[%emt 0:00:00]} c6 {[%emt 0:00:00]} 2. d4 {[%emt 0:00:01]} d5 {[%emt 0:00:00]} 3. exd5 {[%emt 0:00:01]} cxd5 {[%emt 0:00:00]} 4. Bd3 {[%emt 0:00:02]} Nc6 {[%emt 0:00:01]} 5. c3 {[%emt 0:00:01]} Qc7 {[%emt 0:00:02]} 6. h3 {[%emt 0:00:01]} e6 {[%emt 0:00:12]} 7. Nf3 {[%emt 0:00:02]} Bd6 {[%emt 0:00:01]} 8. O-O {[%emt 0:00:02]} Nge7 {[%emt 0:00:02]} 9. Re1 {[%emt 0:00:05]} O-O {[%emt 0:00:02]} 10. Nbd2 {[%emt 0:00:04]} Ng6 {[%emt 0:00:34]} 11. Nf1 {[%emt 0:00:02]} Bd7 {[%emt 0:00:29]} 12. h4 {[%emt 0:00:06]} Rad8 {[%emt 0:00:05]} 13. h5 {[%emt 0:00:04]} Nf4 {[%emt 0:00:02]} 14. h6 {[%emt 0:00:03]} Nxd3 {[%emt 0:00:20]} 15. hxg7 {[%emt 0:00:06]} Nxe1 {[%emt 0:00:02]} 16. gxf8=Q+ {[%emt 0:00:03]} Bxf8 {[%emt 0:00:01]} 17. Qxe1 {[%emt 0:00:09]} f6 {[%emt 0:00:08]} 18. Ne3 {[%emt 0:00:06]} Bc8 {[%emt 0:00:07]} 19. Qe2 {[%emt 0:00:38]} Qg7 {[%emt 0:00:02]} 20. Bd2 {[%emt 0:00:05]} e5 {[%emt 0:00:08]} 21. Nh4 {[%emt 0:00:16]} Ne7 {[%emt 0:00:27]} 22. Qh5 {[%emt 0:00:14]} Qf7 {[%emt 0:00:07]} 23. Qf3 {[%emt 0:00:24]} e4 {[%emt 0:00:20]} 24. Qg3+ {[%emt 0:00:02]} Bg7 {[%emt 0:00:08]} 25. Qc7 {[%emt 0:00:27]} Nc6 {[%emt 0:00:01]} 26. Qxf7+ {[%emt 0:00:08]} Kxf7 {[%emt 0:00:02]} 27. Nhf5 {[%emt 0:00:01]} Bf8 {[%emt 0:00:01]} 28. g4 {[%emt 0:00:03]} Ne7 {[%emt 0:00:02]} 29. Nxe7 {[%emt 0:00:12]} Bxe7 {[%emt 0:00:01]} 30. f3 {[%emt 0:00:07]} exf3 {[%emt 0:00:14]} 31. Kf2 {[%emt 0:00:01]} Kg6 {[%emt 0:00:10]} 32. Rh1 {[%emt 0:00:03]} Bf8 {[%emt 0:00:02]} 33. Kxf3 {[%emt 0:00:03]} Bh6 {[%emt 0:00:08]} 34. Nf1 {[%emt 0:00:14]} Bg5 {[%emt 0:00:01]} 35. Bf4 {[%emt 0:00:04]} Be6 {[%emt 0:00:03]} 36. Ne3 {[%emt 0:00:02]} h6 {[%emt 0:00:02]} 37. Re1 {[%emt 0:00:04]} Re8 {[%emt 0:00:01]} 38. Ng2 {[%emt 0:00:03]} Bf7 {[%emt 0:00:02]} 39. Rxe8 {[%emt 0:00:02]} Bxe8 {[%emt 0:00:01]} 40. Ne3 {[%emt 0:00:01]} Bf7 {[%emt 0:00:01]} 41. Nf5 {[%emt 0:00:03]} Be6 {[%emt 0:00:01]} 42. Ne3 {[%emt 0:00:01]} Kf7 {[%emt 0:00:04]} 43. Ng2 {[%emt 0:00:04]} Kg6 {[%emt 0:00:01]} 44. Ne3 {[%emt 0:00:01]} Kf7 {[%emt 0:00:02]} 45. b3 {[%emt 0:00:01]} b5 {[%emt 0:00:02]} 46. Ng2 {[%emt 0:00:03]} Kg6 {[%emt 0:00:01]} 47. Ne3 {[%emt 0:00:01]} Kf7 {[%emt 0:00:01]} 48. Ng2 {[%emt 0:00:02]} Kg6 {[%emt 0:00:02]} 49. Ne3 {[%emt 0:00:01]} a5 {[%emt 0:00:02]} 50. Ng2 {[%emt 0:00:04]} Kf7 {[%emt 0:00:01]} 51. Ne3 {[%emt 0:00:01]} Ke7 {[%emt 0:00:02]} 52. Nc2 {[%emt 0:00:03]} Kd7 {[%emt 0:00:04]} 53. b4 {[%emt 0:00:02]} a4 {[%emt 0:00:03]} 54. Na3 {[%emt 0:00:01]} Kc6 {[%emt 0:00:02]} 55. Nc2 {[%emt 0:00:01]} Bf7 {[%emt 0:00:02]} 56. Ne3 {[%emt 0:00:02]} Bg6 {[%emt 0:00:01]} 57. a3 {[%emt 0:00:02]} Be4+ {[%emt 0:00:03]} 58. Kg3 {[%emt 0:00:01]} Bg6 {[%emt 0:00:01]} 59. Ng2 {[%emt 0:00:01]} Be4 {[%emt 0:00:03]} 60. Ne3 {[%emt 0:00:01]} Bg6 {[%emt 0:00:02]} 61. Ng2 {[%emt 0:00:01]} 1/2-1/2

[Event "RUS-ch Men Blitz 2019"]
[Site "Sochi"]
[Date "2019.10.17"]
[Round "12.4"]
[White "Tsydypov, Zhamsaran"]
[Black "Shimanov, Aleksandr"]
[Result "0-1"]
[ECO "B12"]
[WhiteElo "2553"]
[BlackElo "2587"]
[Annotator "ChessBase"]
[PlyCount "88"]
[EventDate "2019.10.17"]
[EventType "swiss"]
[EventCountry "RUS"]
[SourceTitle "playchess.com"]
[Source "ChessBase"]
[SourceQuality "1"]
[TimeControl "180+2"]

1. e4 {[%emt 0:00:00]} c6 {[%emt 0:00:00]} 2. d4 {[%emt 0:00:00]} d5 {[%emt 0:00:00]} 3. e5 {[%emt 0:00:02]} Bf5 {[%emt 0:00:00]} 4. Nf3 {[%emt 0:00:01]} e6 {[%emt 0:00:01]} 5. Be2 {[%emt 0:00:01]} Ne7 {[%emt 0:00:02]} 6. O-O {[%emt 0:00:04]} Nd7 {[%emt 0:00:10]} 7. Nbd2 {[%emt 0:00:14]} h6 {[%emt 0:00:04]} 8. Nb3 {[%emt 0:00:10]} g5 {[%emt 0:00:02]} 9. Ne1 {[%emt 0:00:07]} Qc7 {[%emt 0:00:05]} 10. Nd3 {[%emt 0:00:03]} Ng6 {[%emt 0:00:20]} 11. f4 {[%emt 0:00:09]} O-O-O {[%emt 0:00:07]} 12. fxg5 {[%emt 0:00:05]} hxg5 {[%emt 0:00:01]} 13. Bxg5 {[%emt 0:00:01]} f6 {[%emt 0:00:01]} 14. Rxf5 {[%emt 0:00:54]} exf5 {[%emt 0:00:03]} 15. Bh5 {[%emt 0:00:01]} Ngxe5 {[%emt 0:00:22]} 16. Nxe5 {[%emt 0:00:13]} fxe5 {[%emt 0:00:37]} 17. dxe5 {[%emt 0:00:26]} Nxe5 {[%emt 0:00:29]} 18. Bxd8 Qxd8 {[%emt 0:00:01]} 19. Be2 {[%emt 0:00:24]} Qh4 {[%emt 0:00:03]} 20. h3 {[%emt 0:00:02]} Rg8 {[%emt 0:00:12]} 21. Kh1 {[%emt 0:00:02]} Bd6 {[%emt 0:00:05]} 22. Qe1 {[%emt 0:00:10]} Qf4 {[%emt 0:00:06]} 23. Qg1 {[%emt 0:00:18]} Rg3 {[%emt 0:00:20]} 24. Rf1 {[%emt 0:00:02]} Qe4 {[%emt 0:00:01]} 25. Qf2 {[%emt 0:00:09]} f4 {[%emt 0:00:23]} 26. Nd2 {[%emt 0:00:02]} Rxh3+ {[%emt 0:00:03]} 27. Kg1 {[%emt 0:00:01]} Qg6 {[%emt 0:00:01]} 28. Nf3 {[%emt 0:00:06]} Ng4 {[%emt 0:00:07]} 29. Qxa7 {[%emt 0:00:02]} Ne3 {[%emt 0:00:03]} 30. Rf2 {[%emt 0:00:02]} Rh8 {[%emt 0:00:05]} 31. Qd4 {[%emt 0:00:06]} Qh6 {[%emt 0:00:02]} 32. Rf1 {[%emt 0:00:02]} Nxf1 33. Kxf1 {[%emt 0:00:02]} Re8 {[%emt 0:00:06]} 34. Bd3 {[%emt 0:00:04]} Rg8 {[%emt 0:00:01]} 35. Bf5+ {[%emt 0:00:00]} Kc7 36. Bh3 Qg7 {[%emt 0:00:02]} 37. Qd3 {[%emt 0:00:05]} Qxb2 {[%emt 0:00:02]} 38. Nd4 {[%emt 0:00:00]} Re8 {[%emt 0:00:02]} 39. Ne6+ {[%emt 0:00:01]} Kb8 {[%emt 0:00:01]} 40. a4 {[%emt 0:00:04]} Qa1+ {[%emt 0:00:01]} 41. Kf2 {[%emt 0:00:01]} Qe5 {[%emt 0:00:01]} 42. Qg6 {[%emt 0:00:02]} Re7 {[%emt 0:00:02]} 43. Kf1 {[%emt 0:00:04]} Qe3 {[%emt 0:00:02]} 44. Bg4 {[%emt 0:00:01]} Bc5 {[%emt 0:00:04]} 0-1

[Event "RUS-ch Men Blitz 2019"]
[Site "Sochi"]
[Date "2019.10.17"]
[Round "12.5"]
[White "Mikhailovsky, Vladimir"]
[Black "Rublevsky, Sergei"]
[Result "0-1"]
[ECO "B21"]
[WhiteElo "2209"]
[BlackElo "2651"]
[Annotator "RC"]
[PlyCount "101"]
[EventDate "2019.10.17"]
[EventType "swiss"]
[EventCountry "RUS"]
[SourceTitle "playchess.com"]
[Source "ChessBase"]
[SourceQuality "1"]
[TimeControl "180+2"]

1. e4 {[%emt 0:00:00]} c5 {[%emt 0:00:00]} 2. d4 {[%emt 0:00:00]} cxd4 {[%emt 0:00:00]} 3. c3 {[%emt 0:00:01]} dxc3 {[%emt 0:00:02]} 4. Nxc3 {[%emt 0:00:01]} Nc6 {[%emt 0:00:01]} 5. Nf3 {[%emt 0:00:01]} e6 {[%emt 0:00:04]} 6. Bc4 {[%emt 0:00:02]} d6 {[%emt 0:00:04]} 7. O-O {[%emt 0:00:02]} Be7 {[%emt 0:00:06]} 8. Qe2 {[%emt 0:00:02]} Nf6 {[%emt 0:00:01]} 9. Rd1 {[%emt 0:00:01]} e5 {[%emt 0:00:05]} 10. h3 {[%emt 0:00:04]} O-O {[%emt 0:00:02]} 11. Bg5 {[%emt 0:00:03]} Be6 {[%emt 0:00:04]} 12. Bxf6 {[%emt 0:00:04]} Bxf6 {[%emt 0:00:02]} 13. Nd5 {[%emt 0:00:10]} Bg5 {[%emt 0:00:17]} 14. a3 {[%emt 0:00:09]} Rc8 {[%emt 0:00:10]} 15. b4 {[%emt 0:00:05]} Bh6 {[%emt 0:00:02]} 16. b5 {[%emt 0:00:10]} Ne7 {[%emt 0:00:07]} 17. Nh2 {[%emt 0:00:06]} Rc5 {[%emt 0:00:14]} 18. Ng4 {[%emt 0:00:05]} Bg5 {[%emt 0:00:02]} 19. Nge3 {[%emt 0:00:05]} Bxe3 {[%emt 0:00:04]} 20. Nxe3 {[%emt 0:00:01]} Qc7 {[%emt 0:00:05]} 21. Bxe6 {[%emt 0:00:13]} fxe6 {[%emt 0:00:01]} 22. Qg4 {[%emt 0:00:01]} Rf6 {[%emt 0:00:02]} 23. Rd2 {[%emt 0:00:04]} Rxb5 {[%emt 0:00:11]} 24. Rad1 {[%emt 0:00:02]} Rb6 {[%emt 0:00:04]} 25. Qh5 {[%emt 0:00:27]} Ng6 26. Ng4 {[%emt 0:00:06]} Rf8 {[%emt 0:00:14]} 27. Qg5 Qd8 {[%emt 0:00:30]} 28. Qe3 {[%emt 0:00:21]} Qe7 {[%emt 0:00:12]} 29. g3 {[%emt 0:00:03]} Rc8 {[%emt 0:00:09]} 30. h4 {[%emt 0:00:02]} Nf8 {[%emt 0:00:02]} 31. h5 {[%emt 0:00:08]} h6 {[%emt 0:00:01]} 32. a4 {[%emt 0:00:06]} Nd7 {[%emt 0:00:07]} 33. a5 {[%emt 0:00:04]} Ra6 {[%emt 0:00:02]} 34. Qa3 {[%emt 0:00:06]} Rc5 {[%emt 0:00:01]} 35. Qb4 {[%emt 0:00:07]} Nb8 {[%emt 0:00:30]} 36. Ne3 {[%emt 0:00:30]} Nc6 {[%emt 0:00:01]} 37. Qa3 {[%emt 0:00:15]} Nd4 {[%emt 0:00:02]} 38. Kg2 {[%emt 0:00:04]} Rcxa5 {[%emt 0:00:02]} 39. Qb4 {[%emt 0:00:05]} Ra4 {[%emt 0:00:04]} 40. Qc3 {[%emt 0:00:04]} Rc6 {[%emt 0:00:02]} 41. Qb2 {[%emt 0:00:03]} Qf7 {[%emt 0:00:01]} 42. f4 {[%emt 0:00:16]} Qxh5 {[%emt 0:00:04]} 43. Rf1 {[%emt 0:00:02]} b5 {[%emt 0:00:07]} 44. f5 {[%emt 0:00:02]} exf5 {[%emt 0:00:03]} 45. exf5 {[%emt 0:00:01]} Qf7 {[%emt 0:00:02]} 46. f6 {[%emt 0:00:01]} gxf6 {[%emt 0:00:05]} 47. Rdf2 {[%emt 0:00:03]} Rc1 48. Qxc1 {[%emt 0:00:04]} Ra2 {[%emt 0:00:02]} 49. Qc8+ {[%emt 0:00:01]} Kh7 {[%emt 0:00:02]} 50. Nf5 {[%emt 0:00:02]} Rxf2+ {[%emt 0:00:02]} 51. Rxf2 {[%emt 0:00:02]} 0-1

[Event "RUS-ch Men Blitz 2019"]
[Site "Sochi"]
[Date "2019.10.17"]
[Round "12.6"]
[White "Lysyj, Igor"]
[Black "Golubov, Saveliy"]
[Result "0-1"]
[ECO "A52"]
[WhiteElo "2596"]
[BlackElo "2469"]
[Annotator "ChessBase"]
[PlyCount "85"]
[EventDate "2019.10.17"]
[EventType "swiss"]
[EventCountry "RUS"]
[SourceTitle "playchess.com"]
[Source "ChessBase"]
[SourceQuality "1"]
[TimeControl "180+2"]

1. d4 {[%emt 0:00:00]} Nf6 {[%emt 0:00:00]} 2. c4 {[%emt 0:00:01]} e5 {[%emt 0:00:00]} 3. dxe5 {[%emt 0:00:04]} Ng4 {[%emt 0:00:00]} 4. Nf3 {[%emt 0:00:05]} Bc5 {[%emt 0:00:01]} 5. e3 {[%emt 0:00:03]} Nc6 {[%emt 0:00:00]} 6. Nc3 {[%emt 0:00:03]} Ngxe5 {[%emt 0:00:01]} 7. Be2 {[%emt 0:00:05]} O-O {[%emt 0:00:02]} 8. b3 {[%emt 0:00:12]} Re8 {[%emt 0:00:01]} 9. Bb2 {[%emt 0:00:03]} a5 {[%emt 0:00:00]} 10. Nd2 {[%emt 0:00:06]} d6 {[%emt 0:00:18]} 11. Nde4 {[%emt 0:00:04]} Ba7 {[%emt 0:00:03]} 12. O-O {[%emt 0:00:05]} Bf5 {[%emt 0:00:06]} 13. Ng3 {[%emt 0:00:02]} Bd7 {[%emt 0:00:12]} 14. h3 {[%emt 0:00:08]} Qh4 {[%emt 0:00:16]} 15. Nd5 {[%emt 0:00:07]} Rac8 {[%emt 0:00:04]} 16. Kh2 {[%emt 0:00:06]} Nb4 {[%emt 0:00:26]} 17. Nxb4 {[%emt 0:00:43]} axb4 {[%emt 0:00:01]} 18. Qd2 {[%emt 0:00:01]} Bc5 {[%emt 0:00:12]} 19. Rae1 {[%emt 0:00:04]} Ra8 {[%emt 0:00:10]} 20. Bd4 {[%emt 0:00:11]} Rad8 {[%emt 0:00:38]} 21. f4 {[%emt 0:00:25]} Nc6 {[%emt 0:00:00]} 22. Bf3 {[%emt 0:00:06]} Qe7 {[%emt 0:00:59]} 23. Bxc6 {[%emt 0:00:18]} bxc6 {[%emt 0:00:05]} 24. Bxc5 {[%emt 0:00:03]} dxc5 {[%emt 0:00:02]} 25. Qf2 {[%emt 0:00:04]} Qd6 {[%emt 0:00:09]} 26. Rd1 {[%emt 0:00:06]} Qe7 {[%emt 0:00:01]} 27. e4 {[%emt 0:00:03]} f6 {[%emt 0:00:01]} 28. Rfe1 {[%emt 0:00:02]} Be6 {[%emt 0:00:02]} 29. Qe3 {[%emt 0:00:16]} Rd7 {[%emt 0:00:02]} 30. Rxd7 {[%emt 0:00:03]} Bxd7 {[%emt 0:00:01]} 31. Qf3 {[%emt 0:00:05]} Ra8 {[%emt 0:00:04]} 32. Re2 {[%emt 0:00:01]} Ra6 {[%emt 0:00:03]} 33. e5 {[%emt 0:00:03]} fxe5 {[%emt 0:00:01]} 34. Rxe5 {[%emt 0:00:02]} Qf8 {[%emt 0:00:01]} 35. Qf2 {[%emt 0:00:03]} h6 {[%emt 0:00:04]} 36. Nh5 {[%emt 0:00:08]} Be8 {[%emt 0:00:02]} 37. Ng3 {[%emt 0:00:01]} Bd7 {[%emt 0:00:00]} 38. Ne4 {[%emt 0:00:01]} Rxa2 {[%emt 0:00:02]} 39. Qg3 {[%emt 0:00:06]} Kh7 {[%emt 0:00:04]} 40. Nxc5 {[%emt 0:00:03]} Bf5 {[%emt 0:00:01]} 41. Ne6 {[%emt 0:00:05]} Bxe6 {[%emt 0:00:01]} 42. Rxe6 {[%emt 0:00:01]} Rd2 {[%emt 0:00:05]} 43. Qg6+ {[%emt 0:00:01]} 0-1

[Event "RUS-ch Men Blitz 2019"]
[Site "Sochi"]
[Date "2019.10.17"]
[Round "12.7"]
[White "Sakaev, Konstantin"]
[Black "Timofeev, Artyom"]
[Result "1/2-1/2"]
[ECO "A50"]
[WhiteElo "2595"]
[BlackElo "2595"]
[Annotator "ChessBase"]
[PlyCount "29"]
[EventDate "2019.10.17"]
[EventType "swiss"]
[EventCountry "RUS"]
[SourceTitle "playchess.com"]
[Source "ChessBase"]
[SourceQuality "1"]
[TimeControl "180+2"]

1. d4 {[%emt 0:00:00]} Nf6 {[%emt 0:00:00]} 2. c4 {[%emt 0:00:00]} b6 {[%emt 0:00:00]} 3. Nc3 {[%emt 0:00:05]} Bb7 {[%emt 0:00:01]} 4. Nf3 {[%emt 0:00:02]} d5 {[%emt 0:00:02]} 5. Bg5 {[%emt 0:00:16]} dxc4 {[%emt 0:00:04]} 6. e3 {[%emt 0:00:03]} e6 {[%emt 0:00:03]} 7. Bxc4 {[%emt 0:00:03]} Be7 {[%emt 0:00:01]} 8. O-O {[%emt 0:00:03]} O-O {[%emt 0:00:02]} 9. Qe2 {[%emt 0:00:03]} Nbd7 {[%emt 0:00:03]} 10. Rfd1 {[%emt 0:00:13]} Nd5 {[%emt 0:00:03]} 11. Bxe7 {[%emt 0:00:09]} Qxe7 {[%emt 0:00:02]} 12. Rac1 {[%emt 0:00:07]} Nxc3 {[%emt 0:00:03]} 13. Rxc3 {[%emt 0:00:01]} c5 {[%emt 0:00:01]} 14. Ba6 {[%emt 0:00:04]} Bxf3 {[%emt 0:00:32]} 15. Qxf3 {[%emt 0:00:02]} 1/2-1/2

[Event "RUS-ch Men Blitz 2019"]
[Site "Sochi"]
[Date "2019.10.17"]
[Round "12.9"]
[White "Derjabin, Ilja"]
[Black "Nozdrachev, Vladislav"]
[Result "0-1"]
[ECO "D35"]
[WhiteElo "2333"]
[BlackElo "2494"]
[Annotator "ChessBase"]
[PlyCount "88"]
[EventDate "2019.10.17"]
[EventType "swiss"]
[EventCountry "RUS"]
[SourceTitle "playchess.com"]
[Source "ChessBase"]
[SourceQuality "1"]
[TimeControl "180+2"]

1. d4 {[%emt 0:00:00]} d5 {[%emt 0:00:00]} 2. c4 {[%emt 0:00:00]} e6 {[%emt 0:00:00]} 3. Nc3 {[%emt 0:00:01]} Nf6 {[%emt 0:00:01]} 4. cxd5 {[%emt 0:00:01]} Nxd5 {[%emt 0:00:02]} 5. e4 {[%emt 0:00:04]} Nxc3 {[%emt 0:00:01]} 6. bxc3 {[%emt 0:00:01]} c5 {[%emt 0:00:01]} 7. a3 {[%emt 0:00:13]} Be7 {[%emt 0:00:05]} 8. Nf3 {[%emt 0:00:01]} O-O {[%emt 0:00:02]} 9. Be2 {[%emt 0:00:01]} b6 {[%emt 0:00:02]} 10. d5 {[%emt 0:00:05]} exd5 {[%emt 0:00:09]} 11. exd5 {[%emt 0:00:02]} Bf6 {[%emt 0:00:03]} 12. O-O {[%emt 0:00:20]} Bxc3 {[%emt 0:00:02]} 13. Ra2 {[%emt 0:00:03]} Bb7 {[%emt 0:00:01]} 14. Bc4 {[%emt 0:00:04]} a6 {[%emt 0:00:26]} 15. a4 {[%emt 0:00:22]} b5 {[%emt 0:00:07]} 16. axb5 {[%emt 0:00:04]} axb5 {[%emt 0:00:01]} 17. Rxa8 {[%emt 0:00:01]} Bxa8 {[%emt 0:00:01]} 18. Bxb5 {[%emt 0:00:01]} Qxd5 {[%emt 0:00:02]} 19. Qxd5 {[%emt 0:00:14]} Bxd5 {[%emt 0:00:01]} 20. Be3 {[%emt 0:00:01]} Bxf3 {[%emt 0:00:19]} 21. gxf3 {[%emt 0:00:01]} Bd4 {[%emt 0:00:01]} 22. Bxd4 {[%emt 0:00:19]} cxd4 {[%emt 0:00:01]} 23. Rc1 {[%emt 0:00:07]} Rd8 {[%emt 0:00:03]} 24. Kf1 {[%emt 0:00:02]} Kf8 {[%emt 0:00:02]} 25. Rc4 {[%emt 0:00:08]} Ke7 {[%emt 0:00:12]} 26. Ke2 {[%emt 0:00:05]} Rd5 {[%emt 0:00:06]} 27. Rc7+ {[%emt 0:00:02]} Kd8 {[%emt 0:00:25]} 28. Rb7 {[%emt 0:00:56]} Kc8 {[%emt 0:00:01]} 29. Rxf7 {[%emt 0:00:08]} Rxb5 {[%emt 0:00:01]} 30. Rxg7 {[%emt 0:00:02]} Rh5 {[%emt 0:00:15]} 31. Rg4 {[%emt 0:00:18]} Nc6 {[%emt 0:00:02]} 32. h4 {[%emt 0:00:02]} Kd7 {[%emt 0:00:05]} 33. f4 {[%emt 0:00:03]} Kd6 {[%emt 0:00:06]} 34. Kd3 {[%emt 0:00:02]} Rd5 {[%emt 0:00:11]} 35. Rg7 {[%emt 0:00:05]} Nb4+ {[%emt 0:00:02]} 36. Kc4 {[%emt 0:00:04]} d3 {[%emt 0:00:03]} 37. Rg1 {[%emt 0:00:02]} d2 {[%emt 0:00:05]} 38. Rd1 {[%emt 0:00:00]} Na6 {[%emt 0:00:17]} 39. Kc3 {[%emt 0:00:06]} Nc5 {[%emt 0:00:01]} 40. f3 {[%emt 0:00:00]} Ke6 {[%emt 0:00:07]} 41. Rxd2 {[%emt 0:00:06]} Rxd2 {[%emt 0:00:01]} 42. Kxd2 Kf5 43. Ke3 {[%emt 0:00:02]} Ne6 {[%emt 0:00:01]} 44. h5 {[%emt 0:00:02]} h6 {[%emt 0:00:01]} 0-1

[Event "RUS-ch Men Blitz 2019"]
[Site "Sochi"]
[Date "2019.10.17"]
[Round "12.11"]
[White "Gubsky, Egor"]
[Black "Triapishko, Alexandr"]
[Result "0-1"]
[ECO "E10"]
[WhiteElo "2339"]
[BlackElo "2514"]
[Annotator "ChessBase"]
[PlyCount "78"]
[EventDate "2019.10.17"]
[EventType "swiss"]
[EventCountry "RUS"]
[SourceTitle "playchess.com"]
[Source "ChessBase"]
[SourceQuality "1"]
[TimeControl "180+2"]

1. d4 {[%emt 0:00:00]} Nf6 {[%emt 0:00:00]} 2. c4 {[%emt 0:00:00]} e6 {[%emt 0:00:00]} 3. Nf3 {[%emt 0:00:01]} d5 {[%emt 0:00:00]} 4. e3 {[%emt 0:00:05]} b6 {[%emt 0:00:11]} 5. Nc3 {[%emt 0:00:10]} Bb7 {[%emt 0:00:01]} 6. Bd3 {[%emt 0:00:03]} g6 {[%emt 0:00:27]} 7. O-O {[%emt 0:00:06]} Bg7 {[%emt 0:00:01]} 8. b3 {[%emt 0:00:01]} O-O {[%emt 0:00:04]} 9. Bb2 {[%emt 0:00:02]} Nbd7 {[%emt 0:00:07]} 10. Rc1 {[%emt 0:00:03]} c5 {[%emt 0:00:18]} 11. Qe2 {[%emt 0:00:20]} cxd4 {[%emt 0:00:35]} 12. Nxd4 {[%emt 0:00:02]} dxc4 {[%emt 0:00:23]} 13. Bxc4 {[%emt 0:00:04]} a6 {[%emt 0:00:06]} 14. Rfd1 {[%emt 0:00:09]} Qe7 {[%emt 0:00:11]} 15. a4 {[%emt 0:00:05]} Ne5 {[%emt 0:00:09]} 16. f3 {[%emt 0:00:19]} Nxc4 {[%emt 0:00:14]} 17. Qxc4 {[%emt 0:00:02]} Rac8 {[%emt 0:00:01]} 18. Qe2 {[%emt 0:00:06]} Rfd8 {[%emt 0:00:04]} 19. Nc2 {[%emt 0:00:06]} Nd7 {[%emt 0:00:10]} 20. Nd4 {[%emt 0:00:17]} Nc5 {[%emt 0:00:10]} 21. b4 {[%emt 0:00:05]} Nd7 {[%emt 0:00:08]} 22. b5 {[%emt 0:00:10]} a5 {[%emt 0:00:06]} 23. Ne4 {[%emt 0:00:38]} Ne5 {[%emt 0:00:13]} 24. Rxc8 {[%emt 0:00:18]} Rxc8 {[%emt 0:00:01]} 25. Rc1 {[%emt 0:00:09]} Rxc1+ {[%emt 0:00:01]} 26. Bxc1 {[%emt 0:00:00]} Bxe4 {[%emt 0:00:01]} 27. fxe4 {[%emt 0:00:01]} Qc5 {[%emt 0:00:02]} 28. Bb2 {[%emt 0:00:09]} Qc4 {[%emt 0:00:05]} 29. Qd1 {[%emt 0:00:09]} Qd3 {[%emt 0:00:03]} 30. Qc1 {[%emt 0:00:04]} Nc4 {[%emt 0:00:02]} 31. Kf2 {[%emt 0:00:11]} Bh6 {[%emt 0:00:00]} 32. Nc2 {[%emt 0:00:04]} Qxe4 {[%emt 0:00:03]} 33. Bd4 {[%emt 0:00:02]} e5 {[%emt 0:00:01]} 34. Bc3 {[%emt 0:00:02]} Qd3 {[%emt 0:00:02]} 35. Ba1 {[%emt 0:00:02]} Nd2 {[%emt 0:00:04]} 36. Qb2 {[%emt 0:00:03]} Ne4+ {[%emt 0:00:02]} 37. Kf3 {[%emt 0:00:01]} f6 {[%emt 0:00:03]} 38. g3 {[%emt 0:00:04]} Nd2+ {[%emt 0:00:02]} 39. Kg4 {[%emt 0:00:02]} Qf5+ {[%emt 0:00:01]} 0-1